Department family,Entity,Date,Expense type,Expense area,Supplier,Transaction number,Amount,VAT registration number
Dept of Health,MHRA,05/09/2018,Assets Under Construction - Plant & Equipment,Operations,Bruker UK Ltd,90474636,"112,318.56 ",272301491
Dept of Health,MHRA,05/09/2018,Carbon Emission Allowances,Operations,Department of Business Energy and Industrial Strategy,CRCFP6424672,"101,173.20 ",888825550
Dept of Health,MHRA,05/09/2018,Infrastructure Services and Maintenance,Transformation,Exponential-e,352316,"26,920.45 ",798572653
Dept of Health,MHRA,05/09/2018,Research,Clinical Practice Research Datalink,Royal College of General Practitioners,INVOTH-003348,"37,268.75 ",997334369
Dept of Health,MHRA,07/09/2018,Euripred Grant Payment,Bacteriology,Icosagen AS,200818,"40,112.11 ",
Dept of Health,MHRA,07/09/2018,Euripred Grant Payment,Bacteriology,JPT peptide Technologies GmbH,170818,"52,776.05 ",
Dept of Health,MHRA,07/09/2018,Euripred Grant Payment,Bacteriology,King's College London,170818,"40,686.61 ",627403551
Dept of Health,MHRA,07/09/2018,Euripred Grant Payment,Bacteriology,Leiden University Medical Center LUMC,170818,"55,013.70 ",
Dept of Health,MHRA,07/09/2018,Euripred Grant Payment,Bacteriology,LIONEX Diagnostics and Therapeutics,170818,"38,083.40 ",
Dept of Health,MHRA,07/09/2018,Euripred Grant Payment,Bacteriology,N.F. Gamaleya NRCEM,170818,"25,179.57 ",
Dept of Health,MHRA,07/09/2018,Euripred Grant Payment,Bacteriology,NCAIDS,170818,"34,451.39 ",
Dept of Health,MHRA,07/09/2018,Euripred Grant Payment,Bacteriology,University of Lausanne UNIL,170818,"136,938.28 ",
Dept of Health,MHRA,07/09/2018,Euripred Grant Payment,Bacteriology,University of Oxford,170818,"33,041.73 ",125506730
Dept of Health,MHRA,10/09/2018,Application Services and Maintenance,Transformation,Accenture (UK) Limited,3003404751,"26,500.01 ",788629066
Dept of Health,MHRA,10/09/2018,Application Services and Maintenance,Transformation,Accenture (UK) Limited,3003404752,"349,672.26 ",788629066
Dept of Health,MHRA,10/09/2018,Assets Under Construction - Plant & Equipment,Operations,Detail Design Engineering LTD,12822,"25,263.30 ",561067355
Dept of Health,MHRA,10/09/2018,Infrastructure Services and Maintenance,Transformation,EntServ UK Limited,6062525,"25,722.12 ",432995915
Dept of Health,MHRA,11/09/2018,Accommodation Rates,Operations,Hertsmere Borough Council,N002960F,"80,359.00 ",230640406
Dept of Health,MHRA,12/09/2018,Application Services and Maintenance,Transformation,Accenture (UK) Limited,3003403258,"363,345.90 ",788629066
Dept of Health,MHRA,12/09/2018,Travel and Subsistence,Finance & Procurement,Clarity Travel Management,MHRA0029,"133,191.04 ",197694731
Dept of Health,MHRA,18/09/2018,Application Services and Maintenance,Transformation,Accenture (UK) Limited,3003405136,"37,911.97 ",788629066
Dept of Health,MHRA,18/09/2018,Software & Licences,Transformation,EMEA Ltd,13264715,"88,248.24 ",844903710
Dept of Health,MHRA,18/09/2018,Security,Operations,ISS Facility Services Limited,SLINVS/44007341,"50,767.98 ",945751887
Dept of Health,MHRA,18/09/2018,IT Security,Transformation,Redrock Consulting Ltd,7718,"66,000.53 ",862247715
Dept of Health,MHRA,18/09/2018,Biological Investigation Costs,Operations,Techniplast,23205,"27,576.01 ",684159112
Dept of Health,MHRA,24/09/2018,Application Services and Maintenance,Transformation,Cognizant Worldwide Limited,CW101-0000104627A,"145,531.20 ",123382928
Dept of Health,MHRA,24/09/2018,Application Services and Maintenance,Transformation,Cognizant Worldwide Limited,CW101-0000127551A,"106,048.80 ",123382928
Dept of Health,MHRA,24/09/2018,Application Services and Maintenance,Transformation,Cognizant Worldwide Limited,CW101-0000135724A,"37,420.80 ",123382928
Dept of Health,MHRA,24/09/2018,Application Services and Maintenance,Transformation,Digital Business Design LLP,MHRA07,"55,320.00 ",265660486
Dept of Health,MHRA,24/09/2018,Infrastructure Services and Maintenance,Transformation,EntServ UK Limited,6061524,"25,722.12 ",432995915
Dept of Health,MHRA,24/09/2018,Infrastructure Services and Maintenance,Transformation,Exponential-e,918092,"-35,611.49 ",798572653
Dept of Health,MHRA,24/09/2018,SIAM - Portfolio Services,Transformation,FDM Group ltd,267750-FM,"35,820.00 ",583540529
Dept of Health,MHRA,24/09/2018,SIAM - Portfolio Services,Transformation,FDM Group ltd,270724-FM,"38,142.00 ",583540529
Dept of Health,MHRA,24/09/2018,Solicitors,Policy,Government Legal Department,A2634,"220,500.00 ",888823066
Dept of Health,MHRA,24/09/2018,Solicitors,Policy,Government Legal Department,A2635,"26,700.00 ",888823066
Dept of Health,MHRA,24/09/2018,Application Services and Maintenance,Transformation,Ingenica Solutions Ltd,PSI1519,"27,266.51 ",152777979
Dept of Health,MHRA,24/09/2018,Security,Operations,ISS Facility Services Limited,SLINVS/44007712,"50,767.98 ",945751887
Dept of Health,MHRA,24/09/2018,Application Services and Maintenance,Transformation,Red Ant Digital Ltd,INV-07909,"39,540.00 ",123388322
Dept of Health,MHRA,24/09/2018,Application Services and Maintenance,Transformation,Red Ant Digital Ltd,INV-07911,"39,540.00 ",123388322
Dept of Health,MHRA,24/09/2018,Application Services and Maintenance,Finance & Procurement,Redrock Consulting Ltd,7955,"88,597.22 ",862247715
Dept of Health,MHRA,24/09/2018,Infrastructure Services and Maintenance,Transformation,Redrock Consulting Ltd,7997,"49,474.08 ",862247715
Dept of Health,MHRA,24/09/2018,Software & Licences,Transformation,Trustmarque Solutions Limited,2276207,"40,715.11 ",394593601
Dept of Health,MHRA,24/09/2018,Assets Under Construction - Plant & Equipment,Operations,Tyco Fire and Intergrated Solutions (UK) Limited,TY026370,"225,814.12 ",413633086
Dept of Health,MHRA,26/09/2018,Application Services and Maintenance,Transformation,Accenture (UK) Limited,3003405874,"351,124.07 ",788629066
Dept of Health,MHRA,26/09/2018,Application Services and Maintenance,Transformation,Accenture (UK) Limited,3003406488,"80,281.50 ",788629066
Dept of Health,MHRA,26/09/2018,Professional Memberships,Transformation,CSC Computer Sciences Ltd,5201549362,"36,000.00 ",584686581
Dept of Health,MHRA,26/09/2018,Accommodation Rates,Operations,Hertsmere Borough Council,N002960G,"80,359.00 ",230640406
Dept of Health,MHRA,26/09/2018,Infrastructure Services and Maintenance,Transformation,Redrock Consulting Ltd,7961,"72,933.64 ",862247715
